[Event "47th GRE-chT 2019"]
[Site "Patra"]
[Date "2019.07.06"]
[Round "7.27"]
[White "Karavitaki, Evaggelia"]
[Black "Kyriakidou, Chrysa"]
[Result "1-0"]
[ECO "B18"]
[WhiteElo "1681"]
[BlackElo "1338"]
[Annotator "NA"]
[PlyCount "149"]
[EventDate "2019.07.02"]
[EventCountry "GRE"]
[SourceTitle "playchess.com"]
[Source "ChessBase"]
[SourceQuality "1"]
[TimeControl "5400+30"]

1. e4 {[%emt 0:00:00]} c6 {[%emt 0:00:00]} 2. d4 {[%emt 0:00:00]} d5 {[%emt 0:00:00]} 3. Nc3 {[%emt 0:00:01]} dxe4 {[%emt 0:00:00]} 4. Nxe4 {[%emt 0:00:08]} Bf5 {[%emt 0:00:00]} 5. Ng3 {[%emt 0:00:20]} Bg6 {[%emt 0:00:00]} 6. h4 {[%emt 0:00:19]} h6 {[%emt 0:00:01]} 7. Nh3 {[%emt 0:00:08]} Nf6 {[%emt 0:00:44]} 8. Nf4 {[%emt 0:00:39]} Bh7 {[%emt 0:00:14]} 9. Bc4 {[%emt 0:00:32]} e6 {[%emt 0:01:33]} 10. O-O {[%emt 0:00:59]} Nd5 {[%emt 0:00:48]} 11. Bxd5 {[%emt 0:32:20]} cxd5 {[%emt 0:01:06]} 12. Qh5 {[%emt 0:01:54]} g6 {[%emt 0:29:39]} 13. Qe5 {[%emt 0:11:45]} Rg8 {[%emt 0:00:33]} 14. Re1 {[%emt 0:05:08]} Be7 {[%emt 0:01:18]} 15. c3 {[%emt 0:36:15]} Nc6 {[%emt 0:00:55]} 16. Qe2 {[%emt 0:00:21]} Qd7 {[%emt 0:02:28]} 17. a4 {[%emt 0:02:12]} Na5 {[%emt 0:06:45]} 18. Qc2 {[%emt 0:02:14]} Rc8 {[%emt 0:01:38]} 19. h5 {[%emt 0:01:07]} Bg5 {[%emt 0:05:24]} 20. hxg6 {[%emt 0:01:16]} Bxg6 {[%emt 0:00:23]} 21. Nxg6 {[%emt 0:01:14]} Rxg6 {[%emt 0:00:08]} 22. Nh5 {[%emt 0:01:24]} Bxc1 {[%emt 0:02:55]} 23. Raxc1 {[%emt 0:00:21]} Qe7 {[%emt 0:00:48]} 24. Nf4 {[%emt 0:00:34]} Rg5 {[%emt 0:01:00]} 25. Qe2 {[%emt 0:00:41]} a6 {[%emt 0:03:48]} 26. Nd3 {[%emt 0:00:33]} Qf6 {[%emt 0:19:54]} 27. Nc5 {[%emt 0:00:31]} Ke7 {[%emt 0:00:39]} 28. b4 {[%emt 0:00:31]} Rcg8 {[%emt 0:00:20]} 29. g3 {[%emt 0:00:28]} Nc4 {[%emt 0:05:50]} 30. Kh2 {[%emt 0:00:29]} h5 {[%emt 0:00:46]} 31. Rg1 {[%emt 0:00:19]} h4 {[%emt 0:00:23]} 32. g4 {[%emt 0:00:41]} h3 {[%emt 0:02:54]} 33. Nd3 {[%emt 0:00:25]} Kd8 {[%emt 0:07:38]} 34. Rce1 {[%emt 0:00:38]} Qg7 {[%emt 0:02:17]} 35. f3 {[%emt 0:00:19]} b6 {[%emt 0:03:20]} 36. b5 {[%emt 0:00:39]} a5 {[%emt 0:00:07]} 37. Ref1 {[%emt 0:00:32]} Kd7 {[%emt 0:00:49]} 38. Re1 {[%emt 0:00:26]} Kd8 {[%emt 0:00:07]} 39. Rd1 {[%emt 0:00:33]} Kd7 {[%emt 0:00:14]} 40. Rde1 {[%emt 0:00:00]} Kd8 {[%emt 0:00:00]} 41. Nf4 {[%emt 0:00:00]} Qh6 {[%emt 0:00:00]} 42. Nd3 {[%emt 0:00:00]} Qh7 {[%emt 0:00:00]} 43. Rd1 {[%emt 0:00:00]} Kd7 {[%emt 0:00:00]} 44. Rde1 {[%emt 0:00:00]} Qh4 {[%emt 0:00:00]} 45. Nf4 {[%emt 0:00:00]} Re8 {[%emt 0:00:09]} 46. Nd3 {[%emt 0:03:10]} f5 {[%emt 0:01:47]} 47. Ref1 {[%emt 0:00:51]} fxg4 {[%emt 0:01:33]} 48. fxg4 {[%emt 0:00:18]} e5 {[%emt 0:00:39]} 49. dxe5 {[%emt 0:00:42]} Nxe5 {[%emt 0:00:09]} 50. Nxe5+ {[%emt 0:00:29]} Rgxe5 {[%emt 0:00:44]} 51. Qf3 {[%emt 0:00:20]} Re2+ {[%emt 0:00:44]} 52. Kh1 {[%emt 0:00:11]} Qh7 {[%emt 0:01:47]} 53. Qxd5+ {[%emt 0:00:32]} Kc8 {[%emt 0:00:24]} 54. Qc6+ {[%emt 0:00:57]} Qc7 {[%emt 0:00:18]} 55. Qxc7+ {[%emt 0:00:16]} Kxc7 {[%emt 0:00:05]} 56. Rf3 {[%emt 0:00:45]} Rh8 {[%emt 0:00:26]} 57. g5 {[%emt 0:00:31]} h2 {[%emt 0:00:10]} 58. Rgf1 {[%emt 0:00:07]} Re5 {[%emt 0:01:00]} 59. Rg3 {[%emt 0:01:26]} Re7 {[%emt 0:00:43]} 60. g6 {[%emt 0:00:00]} Rg7 {[%emt 0:00:25]} 61. Rf7+ {[%emt 0:00:14]} Rxf7 {[%emt 0:00:06]} 62. gxf7 {[%emt 0:00:06]} Rf8 {[%emt 0:00:11]} 63. Rf3 {[%emt 0:00:18]} Kd6 {[%emt 0:00:05]} 64. Kxh2 {[%emt 0:00:29]} Ke7 {[%emt 0:00:17]} 65. Kg3 {[%emt 0:00:41]} Rxf7 {[%emt 0:00:19]} 66. Rxf7+ {[%emt 0:00:49]} Kxf7 {[%emt 0:00:05]} 67. Kf4 {[%emt 0:00:43]} Kf6 {[%emt 0:00:42]} 68. Ke4 {[%emt 0:00:13]} Ke6 {[%emt 0:00:30]} 69. Kd4 {[%emt 0:00:24]} Kd6 {[%emt 0:00:24]} 70. c4 {[%emt 0:00:20]} Kc7 {[%emt 0:00:26]} 71. Kd5 {[%emt 0:00:38]} Kd7 {[%emt 0:00:12]} 72. c5 {[%emt 0:00:26]} bxc5 {[%emt 0:01:41]} 73. Kxc5 {[%emt 0:00:13]} Kc7 {[%emt 0:00:06]} 74. b6+ {[%emt 0:00:34]} Kb7 {[%emt 0:00:08]} 75. Kb5 {[%emt 0:00:07]} 1-0

[Event "47th GRE-chT 2019"]
[Site "Patra"]
[Date "2019.07.06"]
[Round "7.28"]
[White "Androutsopoulos-Agiotatos, Vasil"]
[Black "Papadopoulos, Argirios"]
[Result "0-1"]
[ECO "C60"]
[WhiteElo "2063"]
[BlackElo "2222"]
[Annotator "NA"]
[PlyCount "90"]
[EventDate "2019.07.02"]
[EventCountry "GRE"]
[SourceTitle "playchess.com"]
[Source "ChessBase"]
[SourceQuality "1"]
[TimeControl "5400+30"]

1. e4 {[%emt 0:06:10]} e5 {[%emt 0:01:46]} 2. Nf3 {[%emt 0:00:04]} Nc6 {[%emt 0:00:33]} 3. Bb5 {[%emt 0:00:07]} g6 {[%emt 0:00:37]} 4. d4 {[%emt 0:00:17]} exd4 {[%emt 0:00:05]} 5. Bg5 {[%emt 0:00:09]} Be7 {[%emt 0:00:04]} 6. Bxe7 {[%emt 0:00:06]} Qxe7 {[%emt 0:00:09]} 7. Bxc6 {[%emt 0:00:45]} dxc6 {[%emt 0:00:04]} 8. Qxd4 {[%emt 0:11:33]} Nf6 {[%emt 0:00:04]} 9. Nc3 {[%emt 0:00:43]} Bg4 {[%emt 0:01:09]} 10. O-O-O {[%emt 0:06:25]} Bxf3 {[%emt 0:00:02]} 11. gxf3 {[%emt 0:00:31]} O-O {[%emt 0:28:25]} 12. Qe3 {[%emt 0:13:12]} b6 {[%emt 0:19:21]} 13. Ne2 {[%emt 0:16:51]} Qe6 {[%emt 0:00:45]} 14. Kb1 {[%emt 0:04:51]} c5 {[%emt 0:08:13]} 15. h4 {[%emt 0:08:53]} Rad8 {[%emt 0:00:14]} 16. Rdg1 {[%emt 0:07:25]} Nh5 {[%emt 0:18:35]} 17. Qg5 {[%emt 0:03:13]} Kh8 {[%emt 0:00:40]} 18. Nf4 {[%emt 0:01:27]} Nxf4 {[%emt 0:00:02]} 19. Qxf4 {[%emt 0:10:51]} h5 {[%emt 0:03:18]} 20. Qxc7 {[%emt 0:02:35]} Qd6 {[%emt 0:03:09]} 21. Qxd6 {[%emt 0:00:06]} Rxd6 {[%emt 0:00:08]} 22. Rd1 {[%emt 0:02:34]} Rfd8 {[%emt 0:01:41]} 23. Kc1 {[%emt 0:00:11]} Kg7 {[%emt 0:00:21]} 24. f4 {[%emt 0:01:34]} Rxd1+ {[%emt 0:00:01]} 25. Rxd1 {[%emt 0:00:25]} Re8 {[%emt 0:00:31]} 26. f3 {[%emt 0:01:08]} Re6 {[%emt 0:00:05]} 27. Kd2 {[%emt 0:00:46]} Kf6 {[%emt 0:00:13]} 28. Ke3 {[%emt 0:00:03]} Ke7 {[%emt 0:00:11]} 29. Rd5 {[%emt 0:01:01]} Rd6 {[%emt 0:10:17]} 30. Rxd6 {[%emt 0:00:01]} Kxd6 {[%emt 0:00:08]} 31. f5 {[%emt 0:00:31]} gxf5 {[%emt 0:00:01]} 32. Kf4 {[%emt 0:00:26]} fxe4 {[%emt 0:00:03]} 33. fxe4 {[%emt 0:00:56]} Ke6 {[%emt 0:00:41]} 34. Kg5 {[%emt 0:00:07]} Ke5 {[%emt 0:00:10]} 35. Kxh5 {[%emt 0:00:06]} Kxe4 {[%emt 0:01:07]} 36. Kg4 {[%emt 0:00:34]} f5+ {[%emt 0:02:10]} 37. Kg3 {[%emt 0:00:24]} Ke3 {[%emt 0:02:17]} 38. Kg2 {[%emt 0:00:31]} Ke2 {[%emt 0:00:03]} 39. Kg3 {[%emt 0:00:08]} Ke3 {[%emt 0:00:00]} 40. Kg2 {[%emt 0:00:00]} Kf4 {[%emt 0:00:00]} 41. Kh3 {[%emt 0:00:00]} b5 {[%emt 0:00:00]} 42. a3 {[%emt 0:00:00]} c4 {[%emt 0:00:00]} 43. b3 {[%emt 0:00:00]} cxb3 {[%emt 0:00:00]} 44. cxb3 {[%emt 0:00:00]} a5 {[%emt 0:00:00]} 45. a4 {[%emt 0:00:00]} b4 {[%emt 0:00:00]} 0-1

[Event "47th GRE-chT 2019"]
[Site "Patra"]
[Date "2019.07.06"]
[Round "7.29"]
[White "Patrelakis, Evaggelos"]
[Black "Koutlas, Nikolaos"]
[Result "1-0"]
[ECO "B68"]
[WhiteElo "2209"]
[BlackElo "1969"]
[Annotator "NA"]
[PlyCount "144"]
[EventDate "2019.07.02"]
[EventCountry "GRE"]
[SourceTitle "playchess.com"]
[Source "ChessBase"]
[SourceQuality "1"]
[TimeControl "5400+30"]

1. e4 {[%emt 0:00:00]} c5 {[%emt 0:00:00]} 2. Nf3 {[%emt 0:00:00]} Nc6 {[%emt 0:00:00]} 3. d4 {[%emt 0:00:00]} cxd4 {[%emt 0:00:00]} 4. Nxd4 {[%emt 0:00:06]} Nf6 {[%emt 0:00:00]} 5. Nc3 {[%emt 0:00:06]} d6 {[%emt 0:00:11]} 6. Bg5 {[%emt 0:00:27]} e6 {[%emt 0:00:11]} 7. Qd2 {[%emt 0:00:09]} a6 {[%emt 0:00:09]} 8. O-O-O {[%emt 0:00:13]} Be7 {[%emt 0:00:11]} 9. f4 {[%emt 0:00:49]} Bd7 {[%emt 0:00:50]} 10. Nf3 {[%emt 0:01:09]} b5 {[%emt 0:00:54]} 11. e5 {[%emt 0:01:31]} dxe5 {[%emt 0:04:52]} 12. fxe5 {[%emt 0:02:05]} Nd5 {[%emt 0:04:58]} 13. Nxd5 {[%emt 0:02:16]} exd5 {[%emt 0:00:33]} 14. Bxe7 {[%emt 0:05:13]} Nxe7 {[%emt 0:00:53]} 15. Bd3 {[%emt 0:01:05]} Rc8 {[%emt 0:07:05]} 16. h3 {[%emt 0:06:40]} Bf5 {[%emt 0:03:11]} 17. Bxf5 {[%emt 0:00:00]} Nxf5 {[%emt 0:00:09]} 18. Rhe1 {[%emt 0:01:02]} O-O {[%emt 0:08:54]} 19. Qxd5 {[%emt 0:01:44]} Qa5 {[%emt 0:06:32]} 20. e6 {[%emt 0:05:14]} fxe6 {[%emt 0:00:47]} 21. Qxe6+ {[%emt 0:00:19]} Kh8 {[%emt 0:00:10]} 22. Kb1 {[%emt 0:01:44]} Qc7 {[%emt 0:04:32]} 23. c3 {[%emt 0:06:11]} Rf6 {[%emt 0:11:06]} 24. Qd7 {[%emt 0:01:47]} Qxd7 {[%emt 0:00:35]} 25. Rxd7 {[%emt 0:00:03]} h6 {[%emt 0:02:15]} 26. Re4 {[%emt 0:06:00]} Rcf8 {[%emt 0:05:42]} 27. b3 {[%emt 0:04:50]} Rg6 {[%emt 0:09:14]} 28. Re2 {[%emt 0:08:01]} Ng3 {[%emt 0:02:23]} 29. Rc2 {[%emt 0:01:57]} Nf5 {[%emt 0:02:47]} 30. Rd3 {[%emt 0:00:44]} Re8 {[%emt 0:01:11]} 31. g4 {[%emt 0:03:33]} Nd6 {[%emt 0:01:39]} 32. Kb2 {[%emt 0:00:34]} Rge6 {[%emt 0:02:37]} 33. Nd2 {[%emt 0:08:12]} Nf7 {[%emt 0:04:00]} 34. c4 {[%emt 0:00:53]} Ne5 {[%emt 0:01:23]} 35. Rd5 {[%emt 0:01:33]} bxc4 {[%emt 0:01:15]} 36. Nxc4 {[%emt 0:00:52]} Nxc4+ {[%emt 0:01:33]} 37. Rxc4 {[%emt 0:00:42]} Re2+ {[%emt 0:01:27]} 38. Rc2 {[%emt 0:02:38]} Rxc2+ {[%emt 0:00:33]} 39. Kxc2 {[%emt 0:00:02]} Re2+ {[%emt 0:00:24]} 40. Rd2 {[%emt 0:00:00]} Re3 {[%emt 0:00:00]} 41. Rd3 {[%emt 0:00:00]} Re2+ {[%emt 0:00:00]} 42. Kb1 {[%emt 0:00:00]} Kg8 {[%emt 0:00:00]} 43. b4 {[%emt 0:00:00]} Kf7 {[%emt 0:00:00]} 44. a4 {[%emt 0:00:00]} Ke6 {[%emt 0:00:00]} 45. b5 {[%emt 0:00:00]} axb5 {[%emt 0:00:00]} 46. axb5 {[%emt 0:00:00]} Re5 {[%emt 0:00:00]} 47. Rb3 {[%emt 0:00:00]} Kd7 {[%emt 0:00:00]} 48. Kc2 {[%emt 0:00:00]} h5 {[%emt 0:00:00]} 49. Kd3 {[%emt 0:00:00]} hxg4 {[%emt 0:00:00]} 50. hxg4 {[%emt 0:00:00]} Kc7 {[%emt 0:00:00]} 51. b6+ {[%emt 0:00:00]} Kb7 {[%emt 0:00:00]} 52. Rb4 {[%emt 0:00:00]} g5 {[%emt 0:03:01]} 53. Kd4 {[%emt 0:00:04]} Re1 {[%emt 0:03:59]} 54. Kd5 {[%emt 0:02:42]} Rf1 {[%emt 0:01:01]} 55. Ke5 {[%emt 0:00:32]} Rf2 {[%emt 0:00:56]} 56. Kd5 {[%emt 0:02:32]} Rf8 {[%emt 0:04:20]} 57. Re4 {[%emt 0:01:45]} Kxb6 {[%emt 0:00:46]} 58. Re5 {[%emt 0:00:09]} Rg8 {[%emt 0:01:09]} 59. Ke6 {[%emt 0:00:21]} Kc6 {[%emt 0:01:45]} 60. Kf7 {[%emt 0:00:56]} Kd6 {[%emt 0:01:17]} 61. Rf5 {[%emt 0:00:26]} Rc8 {[%emt 0:01:43]} 62. Kf6 {[%emt 0:05:27]} Rg8 {[%emt 0:02:42]} 63. Rxg5 {[%emt 0:00:27]} Rf8+ {[%emt 0:00:20]} 64. Kg7 {[%emt 0:00:05]} Rf4 {[%emt 0:00:28]} 65. Rg6+ {[%emt 0:01:02]} Ke5 {[%emt 0:02:59]} 66. Kh6 {[%emt 0:00:05]} Rf1 {[%emt 0:00:33]} 67. Ra6 {[%emt 0:00:32]} Rh1+ {[%emt 0:00:12]} 68. Kg6 {[%emt 0:00:11]} Rg1 {[%emt 0:00:25]} 69. g5 {[%emt 0:00:06]} Rh1 {[%emt 0:00:15]} 70. Kg7 {[%emt 0:00:28]} Rg1 {[%emt 0:00:28]} 71. g6 {[%emt 0:00:08]} Rg2 {[%emt 0:00:15]} 72. Kf7 {[%emt 0:00:54]} Kd5 1-0

[Event "47th GRE-chT 2019"]
[Site "Patra"]
[Date "2019.07.06"]
[Round "7.30"]
[White "Dogias, Christos"]
[Black "Karavitaki, Antonia"]
[Result "1/2-1/2"]
[ECO "B34"]
[WhiteElo "1409"]
[BlackElo "1481"]
[Annotator "NA"]
[PlyCount "110"]
[EventDate "2019.07.02"]
[EventCountry "GRE"]
[SourceTitle "playchess.com"]
[Source "ChessBase"]
[SourceQuality "1"]
[TimeControl "5400+30"]

1. e4 {[%emt 0:00:00]} c5 {[%emt 0:00:00]} 2. Nf3 {[%emt 0:00:00]} g6 {[%emt 0:00:00]} 3. d4 {[%emt 0:00:00]} cxd4 {[%emt 0:00:34]} 4. Nxd4 {[%emt 0:00:15]} Bg7 {[%emt 0:01:00]} 5. Be3 {[%emt 0:02:17]} Nc6 {[%emt 0:00:59]} 6. Nc3 {[%emt 0:00:58]} Nf6 {[%emt 0:01:33]} 7. Be2 {[%emt 0:00:52]} O-O {[%emt 0:01:18]} 8. O-O {[%emt 0:05:59]} d5 {[%emt 0:02:13]} 9. exd5 {[%emt 0:01:18]} Nxd5 {[%emt 0:00:52]} 10. Nxd5 {[%emt 0:06:36]} Nxd4 {[%emt 0:00:52]} 11. Bxd4 {[%emt 0:00:16]} Qxd5 {[%emt 0:00:08]} 12. Bxg7 {[%emt 0:00:24]} Qxd1 {[%emt 0:00:10]} 13. Raxd1 {[%emt 0:00:13]} Kxg7 {[%emt 0:00:10]} 14. Bf3 {[%emt 0:01:44]} Bf5 {[%emt 0:00:15]} 15. c3 {[%emt 0:06:40]} Rac8 {[%emt 0:01:01]} 16. Rfe1 {[%emt 0:07:21]} Kf6 {[%emt 0:02:53]} 17. Re2 {[%emt 0:02:21]} b6 {[%emt 0:00:48]} 18. Rde1 {[%emt 0:01:25]} Rc7 {[%emt 0:00:17]} 19. h4 {[%emt 0:02:41]} h6 {[%emt 0:00:37]} 20. Be4 {[%emt 0:01:42]} Be6 {[%emt 0:00:26]} 21. a3 {[%emt 0:01:22]} Rd8 {[%emt 0:02:11]} 22. Re3 {[%emt 0:02:42]} Rcd7 {[%emt 0:01:12]} 23. Rf3+ {[%emt 0:00:32]} Kg7 {[%emt 0:01:15]} 24. Kh2 {[%emt 0:00:47]} Rd2 {[%emt 0:00:07]} 25. Rg3 {[%emt 0:04:02]} Bc4 {[%emt 0:00:06]} 26. h5 {[%emt 0:04:18]} g5 {[%emt 0:00:16]} 27. f4 {[%emt 0:05:58]} f6 {[%emt 0:00:13]} 28. Bf5 {[%emt 0:14:40]} e5 {[%emt 0:00:16]} 29. fxe5 {[%emt 0:00:08]} fxe5 {[%emt 0:01:11]} 30. Rxe5 {[%emt 0:01:11]} Kf6 {[%emt 0:00:04]} 31. Rge3 {[%emt 0:00:33]} Rxb2 {[%emt 0:00:38]} 32. Bg4 {[%emt 0:11:31]} Rf8 {[%emt 0:02:04]} 33. Rf5+ {[%emt 0:00:18]} Kg7 {[%emt 0:00:08]} 34. Re7+ {[%emt 0:06:46]} Kg8 {[%emt 0:00:26]} 35. Rxa7 {[%emt 0:00:25]} Rxf5 {[%emt 0:00:04]} 36. Bxf5 {[%emt 0:00:23]} Bd5 {[%emt 0:00:05]} 37. Bh3 {[%emt 0:04:32]} Rc2 {[%emt 0:00:32]} 38. Ra6 {[%emt 0:00:17]} Rb2 {[%emt 0:01:04]} 39. a4 {[%emt 0:03:44]} Bc4 {[%emt 0:00:00]} 40. Ra8+ {[%emt 0:00:00]} Kg7 {[%emt 0:00:00]} 41. a5 {[%emt 0:00:00]} bxa5 {[%emt 0:00:00]} 42. Rxa5 {[%emt 0:00:00]} Rc2 {[%emt 0:00:00]} 43. Ra7+ {[%emt 0:00:00]} Kh8 {[%emt 0:00:00]} 44. Rh7+ {[%emt 0:00:00]} Kxh7 {[%emt 0:00:00]} 45. Bf5+ {[%emt 0:00:00]} Kg7 {[%emt 0:00:00]} 46. Bxc2 {[%emt 0:00:00]} Kf6 {[%emt 0:00:00]} 47. g4 {[%emt 0:00:00]} Ke5 {[%emt 0:00:00]} 48. Kg3 {[%emt 0:00:00]} Kd5 {[%emt 0:00:00]} 49. Kf3 {[%emt 0:00:00]} Ke5 {[%emt 0:00:00]} 50. Bf5 {[%emt 0:00:00]} Kd5 {[%emt 0:00:00]} 51. Ke3 {[%emt 0:00:00]} Ke5 {[%emt 0:00:00]} 52. Be4 {[%emt 0:00:00]} Be6 {[%emt 0:00:00]} 53. Bf3 {[%emt 0:00:00]} Bc4 {[%emt 0:00:00]} 54. Bd1 {[%emt 0:00:00]} Bb5 {[%emt 0:00:00]} 55. Bb3 {[%emt 0:00:00]} Bd7 {[%emt 0:00:00] Ke4+ Bc8+} 1/2-1/2

[Event "47th GRE-chT 2019"]
[Site "Patra"]
[Date "2019.07.06"]
[Round "7.32"]
[White "Nikolaidis, Ioannis"]
[Black "Papadopoulos, Georgios"]
[Result "0-1"]
[ECO "E91"]
[WhiteElo "2534"]
[BlackElo "2378"]
[Annotator "ChessBase"]
[PlyCount "92"]
[EventDate "2019.07.02"]
[EventCountry "GRE"]
[SourceTitle "playchess.com"]
[Source "ChessBase"]
[SourceQuality "1"]
[TimeControl "5400+30"]

1. d4 {[%emt 0:00:04]} Nf6 {[%emt 0:00:11]} 2. c4 {[%emt 0:00:06]} g6 {[%emt 0:00:40]} 3. Nc3 {[%emt 0:00:12]} Bg7 {[%emt 0:00:06]} 4. e4 {[%emt 0:00:04]} d6 {[%emt 0:00:32]} 5. Nf3 {[%emt 0:00:08]} O-O {[%emt 0:00:11]} 6. Be2 {[%emt 0:01:00]} Bg4 {[%emt 0:00:22]} 7. Be3 {[%emt 0:00:59]} Nfd7 {[%emt 0:01:53]} 8. Rc1 {[%emt 0:00:09]} e5 {[%emt 0:00:56]} 9. d5 {[%emt 0:00:04]} a5 {[%emt 0:09:55]} 10. h3 {[%emt 0:00:19]} Bxf3 {[%emt 0:00:02]} 11. Bxf3 {[%emt 0:00:33]} Na6 {[%emt 0:00:02]} 12. h4 {[%emt 0:07:04]} f5 {[%emt 0:01:52]} 13. h5 {[%emt 0:18:16]} Nb4 {[%emt 0:08:45]} 14. Rb1 {[%emt 0:08:53]} f4 {[%emt 0:07:05]} 15. Bc1 {[%emt 0:00:06]} Nc5 {[%emt 0:09:54]} 16. Kf1 {[%emt 0:04:15]} a4 {[%emt 0:08:19]} 17. Be2 {[%emt 0:21:22]} gxh5 {[%emt 0:00:00]} 18. Rxh5 {[%emt 0:00:00]} Qe8 {[%emt 0:08:24]} 19. Rh3 {[%emt 0:08:09]} Rf6 {[%emt 0:09:28]} 20. Bg4 {[%emt 0:02:17]} Rh6 {[%emt 0:00:44]} 21. Rxh6 {[%emt 0:00:05]} Bxh6 {[%emt 0:01:24]} 22. Bf5 {[%emt 0:02:37]} Qe7 {[%emt 0:02:07]} 23. Qh5 {[%emt 0:03:11]} Qg5 {[%emt 0:01:15]} 24. Qxg5+ {[%emt 0:00:05]} Bxg5 {[%emt 0:00:59]} 25. Bd2 {[%emt 0:02:39]} c6 {[%emt 0:08:41]} 26. g4 {[%emt 0:08:23]} Nbd3 {[%emt 0:03:26]} 27. f3 {[%emt 0:01:55]} Ra6 {[%emt 0:01:35]} 28. Ke2 {[%emt 0:03:01]} Nb4 {[%emt 0:08:16]} 29. b3 {[%emt 0:02:56]} axb3 {[%emt 0:01:31]} 30. axb3 {[%emt 0:01:06]} Nc2 {[%emt 0:03:06]} 31. dxc6 {[%emt 0:01:16]} Nd4+ {[%emt 0:00:17]} 32. Kf2 {[%emt 0:00:20]} Rxc6 {[%emt 0:02:03]} 33. Nb5 {[%emt 0:03:10]} Nd3+ {[%emt 0:00:51]} 34. Kf1 {[%emt 0:01:41]} Nxf3 {[%emt 0:01:10]} 35. Bc3 {[%emt 0:00:23]} Nh4 {[%emt 0:00:51]} 36. Be6+ {[%emt 0:00:28]} Kf8 {[%emt 0:00:11]} 37. b4 {[%emt 0:00:39]} f3 {[%emt 0:00:42]} 38. Bd5 {[%emt 0:00:07]} Ra6 {[%emt 0:00:40]} 39. Rd1 {[%emt 0:00:34]} Nf4 {[%emt 0:00:00]} 40. Ra1 {[%emt 0:00:00]} Rxa1+ {[%emt 0:00:00]} 41. Bxa1 {[%emt 0:00:00]} Nd3 {[%emt 0:00:00]} 42. Nxd6 {[%emt 0:00:00]} f2 {[%emt 0:00:00]} 43. Nf5 {[%emt 0:00:00]} Nf3 {[%emt 0:00:00]} 44. Ke2 {[%emt 0:00:00]} Nh2 {[%emt 0:00:00]} 45. Ng3 {[%emt 0:00:00]} Bh4 {[%emt 0:00:00]} 46. Nf1 {[%emt 0:00:00]} Nf4+ {[%emt 0:00:00]} 0-1

[Event "47th GRE-chT 2019"]
[Site "Patra"]
[Date "2019.07.06"]
[Round "7.33"]
[White "Sigalas, Frangiskos"]
[Black "Koutoukidis, Panagiotis"]
[Result "1/2-1/2"]
[ECO "A00"]
[WhiteElo "2228"]
[BlackElo "2344"]
[Annotator "NA"]
[PlyCount "74"]
[EventDate "2019.07.02"]
[EventCountry "GRE"]
[SourceTitle "playchess.com"]
[Source "ChessBase"]
[SourceQuality "1"]
[TimeControl "5400+30"]

1. e3 {[%emt 0:01:32]} d5 {[%emt 0:00:26]} 2. d3 {[%emt 0:00:06]} e5 {[%emt 0:00:07]} 3. d4 {[%emt 0:00:05]} Nc6 {[%emt 0:00:10]} 4. Bb5 {[%emt 0:00:09]} Nge7 {[%emt 0:00:05]} 5. Nf3 {[%emt 0:01:03]} e4 {[%emt 0:00:31]} 6. Nfd2 {[%emt 0:00:07]} f5 {[%emt 0:00:52]} 7. O-O {[%emt 0:00:24]} a6 {[%emt 0:00:39]} 8. Be2 {[%emt 0:00:08]} Be6 {[%emt 0:02:55]} 9. c4 {[%emt 0:05:02]} Qd7 {[%emt 0:02:40]} 10. Nc3 {[%emt 0:01:38]} dxc4 {[%emt 0:07:44]} 11. Nxc4 {[%emt 0:11:01]} O-O-O {[%emt 0:04:36]} 12. a3 {[%emt 0:18:30]} Nd5 {[%emt 0:01:06]} 13. Qc2 {[%emt 0:21:52]} Qf7 {[%emt 0:15:56]} 14. Nxd5 {[%emt 0:11:13]} Bxd5 {[%emt 0:01:10]} 15. Rd1 {[%emt 0:00:22]} g5 {[%emt 0:02:44]} 16. b4 {[%emt 0:05:04]} f4 {[%emt 0:01:28]} 17. Bf1 {[%emt 0:07:13]} f3 {[%emt 0:03:34]} 18. Ne5 {[%emt 0:01:25]} Nxe5 {[%emt 0:06:04]} 19. dxe5 {[%emt 0:00:13]} Bg7 {[%emt 0:02:58]} 20. Bb2 {[%emt 0:00:25]} Qe6 {[%emt 0:01:27]} 21. Rac1 {[%emt 0:01:03]} Bxe5 {[%emt 0:01:21]} 22. Bxe5 {[%emt 0:01:36]} Qxe5 {[%emt 0:00:53]} 23. Rd4 {[%emt 0:02:15]} fxg2 {[%emt 0:08:01]} 24. Bxg2 {[%emt 0:00:08]} Bc6 {[%emt 0:00:17]} 25. Rc4 {[%emt 0:03:28]} Kb8 {[%emt 0:13:44]} 26. Bxe4 {[%emt 0:03:07]} Bxe4 {[%emt 0:00:14]} 27. Rxe4 {[%emt 0:00:28]} Qg7 {[%emt 0:00:32]} 28. Qc5 {[%emt 0:03:07]} Rd7 {[%emt 0:00:37]} 29. Qe5 {[%emt 0:00:24]} Rhd8 {[%emt 0:02:57]} 30. Qxg7 {[%emt 0:00:37]} Rxg7 {[%emt 0:00:02]} 31. Rc5 {[%emt 0:00:43]} Rd1+ {[%emt 0:02:24]} 32. Kg2 {[%emt 0:00:07]} Ra1 {[%emt 0:00:04]} 33. Rg4 {[%emt 0:01:00]} h6 {[%emt 0:00:42]} 34. h4 {[%emt 0:00:10]} Rxa3 {[%emt 0:04:44]} 35. hxg5 {[%emt 0:00:06]} hxg5 {[%emt 0:00:14]} 36. Rgxg5 {[%emt 0:00:13]} Rf7 {[%emt 0:02:19]} 37. Rgf5 {[%emt 0:00:22]} Rg7+ {[%emt 0:01:51]} 1/2-1/2

[Event "47th GRE-chT 2019"]
[Site "Patra"]
[Date "2019.07.06"]
[Round "7.34"]
[White "Nikolaou, Georgios"]
[Black "Tzouganakis, Panteleimon"]
[Result "1/2-1/2"]
[ECO "E63"]
[WhiteElo "2202"]
[BlackElo "2197"]
[Annotator "NA RC"]
[PlyCount "23"]
[EventDate "2019.07.02"]
[EventCountry "GRE"]
[SourceTitle "playchess.com"]
[Source "ChessBase"]
[SourceQuality "1"]
[TimeControl "5400+30"]

1. d4 {[%emt 0:00:00]} Nf6 {[%emt 0:08:08]} 2. Nf3 {[%emt 0:00:00]} g6 {[%emt 0:00:16]} 3. g3 {[%emt 0:00:06]} Bg7 {[%emt 0:00:07]} 4. Bg2 {[%emt 0:00:15]} O-O {[%emt 0:00:06]} 5. O-O {[%emt 0:00:11]} d6 {[%emt 0:00:09]} 6. c4 {[%emt 0:00:16]} Nc6 {[%emt 0:00:38]} 7. Nc3 {[%emt 0:00:42]} a6 {[%emt 0:00:43]} 8. Bf4 {[%emt 0:00:43]} Nh5 {[%emt 0:00:07]} 9. Bc1 {[%emt 0:00:09]} Nf6 {[%emt 0:00:07]} 10. Bf4 {[%emt 0:00:08]} Nh5 {[%emt 0:00:07]} 11. Bc1 {[%emt 0:00:06]} Nf6 {[%emt 0:00:41]} 12. Bf4 {[%emt 0:06:04]} 1/2-1/2